[Event "Late-Titled-Tuesday-Blitz-October-17-2023"]
[Site "Chess.com"]
[Date "2023.10.17"]
[Round "3"]
[White "becemix"]
[Black "HanSchut"]
[Result "1-0"]
[WhiteElo "2491"]
[BlackElo "2311"]
[TimeControl "180+1"]
[EndTime "14:28:28 PDT"]
[Termination "becemix won by resignation"]

1. d4 {[%clk 0:03:00.9]} 1... Nf6 {[%clk 0:02:59.4]} 2. Nc3 {[%clk 0:03:01.3]}
2... d5 {[%clk 0:02:59.1]} 3. Bf4 {[%clk 0:03:01.5]} 3... e6 {[%clk 0:02:57.8]}
4. Nf3 {[%clk 0:03:01.9]} 4... Bd6 {[%clk 0:02:57.5]} 5. e3 {[%clk 0:03:01.9]}
5... a6 {[%clk 0:02:57.7]} 6. Bd3 {[%clk 0:03:01.6]} 6... b5 {[%clk 0:02:57.8]}
7. O-O {[%clk 0:02:58.4]} 7... c5 {[%clk 0:02:50]} 8. Re1 {[%clk 0:02:37]} 8...
Bxf4 {[%clk 0:02:45.3]} 9. exf4 {[%clk 0:02:34.8]} 9... cxd4 {[%clk 0:02:45.5]}
10. Nxd4 {[%clk 0:02:32.4]} 10... O-O {[%clk 0:02:45.9]} 11. Nce2 {[%clk
0:02:15.9]} 11... Qc7 {[%clk 0:02:38.9]} 12. c3 {[%clk 0:02:15.4]} 12... Nc6
{[%clk 0:02:37.7]} 13. Rc1 {[%clk 0:02:13.2]} 13... Bd7 {[%clk 0:02:34]} 14. f5
{[%clk 0:02:04.1]} 14... e5 {[%clk 0:02:31]} 15. Nxc6 {[%clk 0:02:02.6]} 15...
Bxc6 {[%clk 0:02:31.4]} 16. Bc2 {[%clk 0:01:53.7]} 16... Rad8 {[%clk 0:02:17]}
17. a4 {[%clk 0:01:49.5]} 17... Qb7 {[%clk 0:02:14.5]} 18. Ng3 {[%clk
0:01:37.2]} 18... d4 {[%clk 0:02:07.8]} 19. axb5 {[%clk 0:01:36.3]} 19... axb5
{[%clk 0:02:07.3]} 20. cxd4 {[%clk 0:01:30.6]} 20... exd4 {[%clk 0:02:06.8]} 21.
f3 {[%clk 0:01:17]} 21... Qb6 {[%clk 0:01:28.1]} 22. Bd3 {[%clk 0:01:14.4]}
22... Rfe8 {[%clk 0:01:26.3]} 23. Ne4 {[%clk 0:01:09.2]} 23... Nd5 {[%clk
0:01:13.4]} 24. Qb3 {[%clk 0:00:54.9]} 24... Nf4 {[%clk 0:00:46]} 25. Kh1 {[%clk
0:00:24.9]} 25... Nxd3 {[%clk 0:00:30.6]} 26. Qxd3 {[%clk 0:00:25.8]} 26... Bd5
{[%clk 0:00:30.7]} 27. Nf2 {[%clk 0:00:22]} 27... Bc4 {[%clk 0:00:30.8]} 28. Qd2
{[%clk 0:00:16.4]} 28... Rxe1+ {[%clk 0:00:25.7]} 29. Rxe1 {[%clk 0:00:16.3]}
29... h6 {[%clk 0:00:26]} 30. Ne4 {[%clk 0:00:14.5]} 30... d3 {[%clk 0:00:22.3]}
31. Qb4 {[%clk 0:00:14.4]} 31... Qd4 {[%clk 0:00:16.1]} 32. Rd1 {[%clk
0:00:11.7]} 32... Bd5 {[%clk 0:00:11.7]} 33. Qxd4 {[%clk 0:00:10.5]} 1-0

[Event "Late-Titled-Tuesday-Blitz-October-17-2023"]
[Site "Chess.com"]
[Date "2023.10.17"]
[Round "3"]
[White "GM_dmitrij"]
[Black "German_Bazeev"]
[Result "1-0"]
[WhiteElo "3048"]
[BlackElo "2794"]
[TimeControl "180+1"]
[EndTime "14:28:29 PDT"]
[Termination "GM_dmitrij won by resignation"]

1. c4 {[%clk 0:03:00.9]} 1... e5 {[%clk 0:02:59.7]} 2. g3 {[%clk 0:03:00.1]}
2... Nf6 {[%clk 0:03:00.1]} 3. Bg2 {[%clk 0:02:59.8]} 3... h6 {[%clk 0:03:00.7]}
4. b3 {[%clk 0:02:54.9]} 4... Nc6 {[%clk 0:02:55.7]} 5. Bb2 {[%clk 0:02:54.2]}
5... Bc5 {[%clk 0:02:55.1]} 6. e3 {[%clk 0:02:51.9]} 6... d6 {[%clk 0:02:50.8]}
7. Ne2 {[%clk 0:02:50.9]} 7... a6 {[%clk 0:02:41.7]} 8. O-O {[%clk 0:02:50.3]}
8... Ba7 {[%clk 0:02:41.2]} 9. Nbc3 {[%clk 0:02:49.3]} 9... h5 {[%clk
0:02:40.7]} 10. h3 {[%clk 0:02:28.4]} 10... h4 {[%clk 0:02:40]} 11. g4 {[%clk
0:02:28.7]} 11... Nxg4 {[%clk 0:02:31]} 12. hxg4 {[%clk 0:02:29.6]} 12... Bxg4
{[%clk 0:02:31.6]} 13. Kh2 {[%clk 0:02:16]} 13... f5 {[%clk 0:02:12.3]} 14. d4
{[%clk 0:02:06.8]} 14... Qd7 {[%clk 0:02:02.3]} 15. Nd5 {[%clk 0:01:41.7]} 15...
O-O-O {[%clk 0:01:42.8]} 16. b4 {[%clk 0:01:41.8]} 16... exd4 {[%clk 0:01:35.5]}
17. b5 {[%clk 0:01:23.3]} 17... Ne5 {[%clk 0:01:23.3]} 18. b6 {[%clk 0:01:22.1]}
18... cxb6 {[%clk 0:00:56.1]} 19. Bxd4 {[%clk 0:01:03.2]} 19... Kb8 {[%clk
0:00:56.1]} 20. Nxb6 {[%clk 0:00:40.8]} 20... Bxb6 {[%clk 0:00:31.5]} 21. Bxb6
{[%clk 0:00:41.7]} 21... Bf3 {[%clk 0:00:32.2]} 22. Bxf3 {[%clk 0:00:27.9]}
22... Nxf3+ {[%clk 0:00:32.2]} 23. Kh1 {[%clk 0:00:28.7]} 23... g5 {[%clk
0:00:23.1]} 24. Qd5 {[%clk 0:00:26.8]} 24... Ne5 {[%clk 0:00:12.8]} 25. Bxd8
{[%clk 0:00:24.2]} 25... f4 {[%clk 0:00:13.1]} 26. Ng1 {[%clk 0:00:16.2]} 26...
f3 {[%clk 0:00:11.5]} 27. Rab1 {[%clk 0:00:12.3]} 27... Nc6 {[%clk 0:00:12.1]}
28. Bxg5 {[%clk 0:00:08.7]} 28... Rf8 {[%clk 0:00:06.6]} 29. Bf4 {[%clk
0:00:07.6]} 29... Rf5 {[%clk 0:00:02.5]} 30. Qxd6+ {[%clk 0:00:07.3]} 1-0

[Event "Late-Titled-Tuesday-Blitz-October-17-2023"]
[Site "Chess.com"]
[Date "2023.10.17"]
[Round "3"]
[White "morte-negra"]
[Black "Resignify"]
[Result "1-0"]
[WhiteElo "1976"]
[BlackElo "2330"]
[TimeControl "180+1"]
[EndTime "14:28:29 PDT"]
[Termination "morte-negra won on time"]

1. e4 {[%clk 0:02:59.2]} 1... d6 {[%clk 0:02:57]} 2. d4 {[%clk 0:02:58.2]} 2...
Nf6 {[%clk 0:02:56.5]} 3. Nc3 {[%clk 0:02:55.7]} 3... g6 {[%clk 0:02:56.8]} 4.
Bg5 {[%clk 0:02:54.5]} 4... Bg7 {[%clk 0:02:56.8]} 5. f4 {[%clk 0:02:54.4]} 5...
c6 {[%clk 0:02:56.1]} 6. e5 {[%clk 0:02:54]} 6... Nd5 {[%clk 0:02:51.4]} 7. Be2
{[%clk 0:02:44.9]} 7... h6 {[%clk 0:02:37.8]} 8. Nxd5 {[%clk 0:02:43.9]} 8...
hxg5 {[%clk 0:02:32.4]} 9. Nc3 {[%clk 0:02:32.7]} 9... gxf4 {[%clk 0:02:31.8]}
10. Nf3 {[%clk 0:02:30.4]} 10... d5 {[%clk 0:02:15.6]} 11. Qd2 {[%clk
0:02:24.4]} 11... Bh6 {[%clk 0:02:10.3]} 12. O-O-O {[%clk 0:02:21.5]} 12... Bf5
{[%clk 0:02:08.1]} 13. Kb1 {[%clk 0:02:16.9]} 13... Qd7 {[%clk 0:01:42.8]} 14.
h4 {[%clk 0:02:12.5]} 14... b5 {[%clk 0:01:31]} 15. Ng5 {[%clk 0:01:52.1]} 15...
f6 {[%clk 0:01:20.3]} 16. exf6 {[%clk 0:01:27.9]} 16... exf6 {[%clk 0:01:19]}
17. Nh3 {[%clk 0:01:26]} 17... Qd6 {[%clk 0:01:00.9]} 18. Bf3 {[%clk 0:01:18.3]}
18... Nd7 {[%clk 0:00:52.7]} 19. Rde1+ {[%clk 0:01:16.1]} 19... Kf7 {[%clk
0:00:52.9]} 20. Ne2 {[%clk 0:00:59.2]} 20... Rae8 {[%clk 0:00:39]} 21. Nexf4
{[%clk 0:00:53.8]} 21... Rxe1+ {[%clk 0:00:34.7]} 22. Rxe1 {[%clk 0:00:47.8]}
22... Bxf4 {[%clk 0:00:33]} 23. Nxf4 {[%clk 0:00:45.1]} 23... Rxh4 {[%clk
0:00:32.2]} 24. Qe3 {[%clk 0:00:22.2]} 24... Rxf4 {[%clk 0:00:10.7]} 25. Qe8+
{[%clk 0:00:20.8]} 25... Kg7 {[%clk 0:00:11.1]} 26. Re7+ {[%clk 0:00:20]} 26...
Kh6 {[%clk 0:00:05.5]} 27. Qh8+ {[%clk 0:00:19.4]} 27... Kg5 {[%clk 0:00:05.4]}
28. g3 {[%clk 0:00:15.7]} 28... Rxd4 {[%clk 0:00:02.6]} 29. Rh7 {[%clk
0:00:08.3]} 29... Qxg3 {[%clk 0:00:01.2]} 30. b3 {[%clk 0:00:04.3]} 1-0

[Event "Late-Titled-Tuesday-Blitz-October-17-2023"]
[Site "Chess.com"]
[Date "2023.10.17"]
[Round "3"]
[White "Inepton_Fermion"]
[Black "WilliamAlfaroCaracas"]
[Result "1-0"]
[WhiteElo "2383"]
[BlackElo "2183"]
[TimeControl "180+1"]
[EndTime "14:28:30 PDT"]
[Termination "Inepton_Fermion won on time"]

1. Nf3 {[%clk 0:01:50.7]} 1... g6 {[%clk 0:02:56.9]} 2. e4 {[%clk 0:01:50.4]}
2... Bg7 {[%clk 0:02:52.3]} 3. d4 {[%clk 0:01:50.1]} 3... d6 {[%clk 0:02:52.6]}
4. c3 {[%clk 0:01:50.1]} 4... Nf6 {[%clk 0:02:49.3]} 5. Bd3 {[%clk 0:01:49.6]}
5... O-O {[%clk 0:02:48.2]} 6. h3 {[%clk 0:01:49.6]} 6... c5 {[%clk 0:02:40.1]}
7. O-O {[%clk 0:01:41.7]} 7... b6 {[%clk 0:02:10.5]} 8. Re1 {[%clk 0:01:36.2]}
8... Bb7 {[%clk 0:02:09]} 9. Nbd2 {[%clk 0:01:30.2]} 9... Nbd7 {[%clk
0:02:05.5]} 10. d5 {[%clk 0:01:28.7]} 10... Nh5 {[%clk 0:01:52.2]} 11. Bf1
{[%clk 0:01:23.4]} 11... e6 {[%clk 0:01:35.1]} 12. dxe6 {[%clk 0:01:18.1]} 12...
fxe6 {[%clk 0:01:34.8]} 13. Nc4 {[%clk 0:01:13.8]} 13... d5 {[%clk 0:01:32]} 14.
Nd6 {[%clk 0:00:59.1]} 14... Qc7 {[%clk 0:01:16]} 15. Nxb7 {[%clk 0:00:55.6]}
15... Qxb7 {[%clk 0:01:16]} 16. Ng5 {[%clk 0:00:46.8]} 16... Rae8 {[%clk
0:01:00.4]} 17. exd5 {[%clk 0:00:45.3]} 17... Qxd5 {[%clk 0:00:58]} 18. Qa4
{[%clk 0:00:31.9]} 18... Ne5 {[%clk 0:00:38.6]} 19. Be3 {[%clk 0:00:16.3]} 19...
Nd3 {[%clk 0:00:23.6]} 20. Red1 {[%clk 0:00:16]} 20... Nxb2 {[%clk 0:00:20.9]}
21. Rxd5 {[%clk 0:00:08.3]} 21... Nxa4 {[%clk 0:00:21.4]} 22. Rd7 {[%clk
0:00:07.6]} 22... Nxc3 {[%clk 0:00:18.3]} 23. Re1 {[%clk 0:00:04.7]} 23... h6
{[%clk 0:00:09.3]} 24. Nxe6 {[%clk 0:00:03.9]} 24... Rxe6 {[%clk 0:00:08]} 25.
Bc4 {[%clk 0:00:04.6]} 25... Re8 {[%clk 0:00:04.4]} 26. Rd6 {[%clk 0:00:04.2]}
26... Kf7 {[%clk 0:00:03.3]} 27. Bd2 {[%clk 0:00:04.9]} 27... Ke7 {[%clk
0:00:02.5]} 28. Rexe6+ {[%clk 0:00:04.6]} 28... Kf8 {[%clk 0:00:02.4]} 29. Rxe8+
{[%clk 0:00:04.2]} 29... Kxe8 {[%clk 0:00:02.9]} 30. Re6+ {[%clk 0:00:03.9]}
30... Kf7 {[%clk 0:00:02.4]} 31. Re3+ {[%clk 0:00:03.3]} 31... Kf8 {[%clk
0:00:02]} 32. Bxc3 {[%clk 0:00:03.8]} 1-0

[Event "Late-Titled-Tuesday-Blitz-October-17-2023"]
[Site "Chess.com"]
[Date "2023.10.17"]
[Round "3"]
[White "cassoulet"]
[Black "BrandonJacobson"]
[Result "1-0"]
[WhiteElo "2785"]
[BlackElo "2982"]
[TimeControl "180+1"]
[EndTime "14:28:32 PDT"]
[Termination "cassoulet won by checkmate"]

1. d4 {[%clk 0:02:59.6]} 1... Nf6 {[%clk 0:03:00.2]} 2. Bg5 {[%clk 0:02:58.1]}
2... d5 {[%clk 0:03:00.2]} 3. Bxf6 {[%clk 0:02:57.6]} 3... exf6 {[%clk
0:03:01.1]} 4. Nf3 {[%clk 0:02:57.6]} 4... Nd7 {[%clk 0:02:58.7]} 5. e3 {[%clk
0:02:56.8]} 5... Nb6 {[%clk 0:02:59.2]} 6. Nbd2 {[%clk 0:02:54.3]} 6... Be6
{[%clk 0:02:59.5]} 7. g3 {[%clk 0:02:54.1]} 7... c6 {[%clk 0:02:58.4]} 8. Bg2
{[%clk 0:02:54.3]} 8... Bd6 {[%clk 0:02:58.6]} 9. O-O {[%clk 0:02:53.7]} 9... f5
{[%clk 0:02:42.9]} 10. Re1 {[%clk 0:02:52.5]} 10... O-O {[%clk 0:02:41.4]} 11.
c3 {[%clk 0:02:51.5]} 11... a5 {[%clk 0:02:41.4]} 12. b3 {[%clk 0:02:50.8]}
12... a4 {[%clk 0:02:32.7]} 13. Qc2 {[%clk 0:02:50.5]} 13... Qc7 {[%clk
0:02:24.5]} 14. c4 {[%clk 0:02:48.4]} 14... axb3 {[%clk 0:02:11.2]} 15. axb3
{[%clk 0:02:47.7]} 15... Bb4 {[%clk 0:02:09]} 16. Rec1 {[%clk 0:02:33.3]} 16...
dxc4 {[%clk 0:02:01.4]} 17. bxc4 {[%clk 0:02:32.4]} 17... c5 {[%clk 0:02:01.1]}
18. d5 {[%clk 0:02:28.2]} 18... Bd7 {[%clk 0:02:00.7]} 19. e4 {[%clk 0:02:06.3]}
19... Bxd2 {[%clk 0:01:09.9]} 20. Nxd2 {[%clk 0:01:58.3]} 20... f4 {[%clk
0:01:01.9]} 21. Rab1 {[%clk 0:01:54.6]} 21... Ra6 {[%clk 0:00:50.9]} 22. Nf3
{[%clk 0:01:40.4]} 22... Bg4 {[%clk 0:00:49.6]} 23. Qd2 {[%clk 0:01:19.3]} 23...
fxg3 {[%clk 0:00:47.5]} 24. hxg3 {[%clk 0:01:19.2]} 24... Bxf3 {[%clk
0:00:38.8]} 25. Bxf3 {[%clk 0:01:20.1]} 25... Nd7 {[%clk 0:00:38.1]} 26. Bg2
{[%clk 0:01:12.9]} 26... Rfa8 {[%clk 0:00:37.5]} 27. Rb2 {[%clk 0:01:07.6]}
27... Ra3 {[%clk 0:00:36.9]} 28. Rcb1 {[%clk 0:01:06.6]} 28... b6 {[%clk
0:00:34.7]} 29. Qf4 {[%clk 0:01:05.1]} 29... Qd8 {[%clk 0:00:25.4]} 30. e5
{[%clk 0:01:01.9]} 30... R8a4 {[%clk 0:00:13.7]} 31. e6 {[%clk 0:00:58.9]} 31...
Nf6 {[%clk 0:00:08.8]} 32. Rxb6 {[%clk 0:00:53.1]} 32... Ra1 {[%clk 0:00:09.4]}
33. Rb8 {[%clk 0:00:44.5]} 33... Rxb1+ {[%clk 0:00:09.6]} 34. Rxb1 {[%clk
0:00:45.4]} 34... Ra8 {[%clk 0:00:07.6]} 35. d6 {[%clk 0:00:42.9]} 35... Rb8
{[%clk 0:00:05.8]} 36. Rxb8 {[%clk 0:00:38.3]} 36... Qxb8 {[%clk 0:00:06.7]} 37.
d7 {[%clk 0:00:34.1]} 37... Qd8 {[%clk 0:00:06.5]} 38. exf7+ {[%clk 0:00:18.7]}
38... Kxf7 {[%clk 0:00:07.4]} 39. Bd5+ {[%clk 0:00:18.7]} 39... Ke7 {[%clk
0:00:04.9]} 40. Qe5+ {[%clk 0:00:18.5]} 40... Kxd7 {[%clk 0:00:05.6]} 41. Qe6+
{[%clk 0:00:19.2]} 41... Kc7 {[%clk 0:00:06.1]} 42. Qc6+ {[%clk 0:00:19.5]}
42... Kb8 {[%clk 0:00:06.8]} 43. Qb7# {[%clk 0:00:20]} 1-0

[Event "Late-Titled-Tuesday-Blitz-October-17-2023"]
[Site "Chess.com"]
[Date "2023.10.17"]
[Round "3"]
[White "Byniolus"]
[Black "Giorno"]
[Result "0-1"]
[WhiteElo "2771"]
[BlackElo "2541"]
[TimeControl "180+1"]
[EndTime "14:28:32 PDT"]
[Termination "Giorno won by resignation"]

1. d4 {[%clk 0:03:00.9]} 1... d5 {[%clk 0:02:58.5]} 2. Bf4 {[%clk 0:03:00.7]}
2... Nf6 {[%clk 0:02:56.3]} 3. e3 {[%clk 0:03:01.1]} 3... e6 {[%clk 0:02:56.3]}
4. Nd2 {[%clk 0:03:01.2]} 4... Bd6 {[%clk 0:02:56.6]} 5. Bg3 {[%clk 0:03:01.8]}
5... c6 {[%clk 0:02:55.6]} 6. Ngf3 {[%clk 0:03:01.8]} 6... Qc7 {[%clk
0:02:55.8]} 7. Ne5 {[%clk 0:03:01.5]} 7... Nfd7 {[%clk 0:02:50.6]} 8. f4 {[%clk
0:03:00.2]} 8... O-O {[%clk 0:02:50.3]} 9. Bd3 {[%clk 0:02:59.9]} 9... g6 {[%clk
0:02:40.5]} 10. h4 {[%clk 0:02:52.6]} 10... f6 {[%clk 0:02:38.7]} 11. Nxd7
{[%clk 0:02:03.9]} 11... Nxd7 {[%clk 0:02:39.6]} 12. h5 {[%clk 0:01:54.1]} 12...
g5 {[%clk 0:02:36.5]} 13. h6 {[%clk 0:01:54.4]} 13... e5 {[%clk 0:02:16.6]} 14.
fxe5 {[%clk 0:01:33.4]} 14... fxe5 {[%clk 0:02:16.4]} 15. Qg4 {[%clk 0:01:21.2]}
15... Kh8 {[%clk 0:01:53.5]} 16. Qxg5 {[%clk 0:01:07.5]} 16... Rg8 {[%clk
0:00:58.2]} 17. Qf5 {[%clk 0:01:07.5]} 17... Rg6 {[%clk 0:00:47.6]} 18. O-O-O
{[%clk 0:00:34.3]} 18... Nf6 {[%clk 0:00:36.8]} 19. Qf2 {[%clk 0:00:26.4]} 19...
e4 {[%clk 0:00:31.7]} 20. Bxd6 {[%clk 0:00:25.1]} 20... Qxd6 {[%clk 0:00:32.6]}
21. Be2 {[%clk 0:00:21.1]} 21... Bg4 {[%clk 0:00:32.6]} 22. Rdf1 {[%clk
0:00:10.3]} 22... Rag8 {[%clk 0:00:32.4]} 23. Bxg4 {[%clk 0:00:06.6]} 23... Nxg4
{[%clk 0:00:32.4]} 24. Qe2 {[%clk 0:00:04.5]} 24... Rxh6 {[%clk 0:00:31.1]} 25.
Rxh6 {[%clk 0:00:04]} 25... Qxh6 {[%clk 0:00:32]} 26. Re1 {[%clk 0:00:03.5]}
26... Qh4 {[%clk 0:00:28.4]} 27. b3 {[%clk 0:00:02.9]} 27... Rf8 {[%clk
0:00:27.9]} 28. Qd1 {[%clk 0:00:01]} 28... Qg3 {[%clk 0:00:22]} 29. Rh1 {[%clk
0:00:01.3]} 29... Nf2 {[%clk 0:00:21.3]} 30. Qh5 {[%clk 0:00:01.5]} 30... Nxh1
{[%clk 0:00:21.1]} 31. Qxh1 {[%clk 0:00:02.4]} 31... Qxe3 {[%clk 0:00:21.5]} 32.
Qh4 {[%clk 0:00:02.4]} 32... Qf4 {[%clk 0:00:20.3]} 33. Qh5 {[%clk 0:00:02.4]}
33... e3 {[%clk 0:00:20.2]} 34. Nf3 {[%clk 0:00:02.8]} 34... e2+ {[%clk
0:00:20.6]} 35. Kb2 {[%clk 0:00:03.7]} 35... Qxf3 {[%clk 0:00:19.6]} 36. Qe5+
{[%clk 0:00:03.4]} 36... Qf6 {[%clk 0:00:19.3]} 37. Qxe2 {[%clk 0:00:04.1]}
37... Qxd4+ {[%clk 0:00:20]} 38. c3 {[%clk 0:00:04]} 38... Qf6 {[%clk
0:00:20.8]} 0-1

[Event "Late-Titled-Tuesday-Blitz-October-17-2023"]
[Site "Chess.com"]
[Date "2023.10.17"]
[Round "3"]
[White "MikaelyanArman"]
[Black "aa175"]
[Result "1-0"]
[WhiteElo "2881"]
[BlackElo "2601"]
[TimeControl "180+1"]
[EndTime "14:28:34 PDT"]
[Termination "MikaelyanArman won by resignation"]

1. d4 {[%clk 0:03:00.6]} 1... Nf6 {[%clk 0:03:00.2]} 2. Nf3 {[%clk 0:02:58.3]}
2... g6 {[%clk 0:03:00]} 3. Nbd2 {[%clk 0:02:55]} 3... d5 {[%clk 0:02:59.6]} 4.
b4 {[%clk 0:02:54.4]} 4... Bg7 {[%clk 0:02:59.8]} 5. e3 {[%clk 0:02:55]} 5... a5
{[%clk 0:02:56.7]} 6. b5 {[%clk 0:02:55.2]} 6... c5 {[%clk 0:02:55.8]} 7. bxc6
{[%clk 0:02:55]} 7... Nxc6 {[%clk 0:02:56.4]} 8. Be2 {[%clk 0:02:55.5]} 8... O-O
{[%clk 0:02:56.7]} 9. O-O {[%clk 0:02:54.9]} 9... a4 {[%clk 0:02:51.8]} 10. Ba3
{[%clk 0:02:53.7]} 10... Ne4 {[%clk 0:02:45.2]} 11. Nxe4 {[%clk 0:02:51.3]}
11... dxe4 {[%clk 0:02:45.2]} 12. Nd2 {[%clk 0:02:52]} 12... f5 {[%clk
0:02:33.8]} 13. Rb1 {[%clk 0:02:47.8]} 13... Re8 {[%clk 0:02:21.2]} 14. Nc4
{[%clk 0:02:39]} 14... Kh8 {[%clk 0:02:03.9]} 15. Nb6 {[%clk 0:02:37.8]} 15...
Ra5 {[%clk 0:02:00.9]} 16. d5 {[%clk 0:02:20.4]} 16... Ne5 {[%clk 0:01:55.6]}
17. Qd2 {[%clk 0:02:18.6]} 17... Ra7 {[%clk 0:01:35.3]} 18. Bc5 {[%clk
0:02:17.3]} 18... Qc7 {[%clk 0:00:59.6]} 19. Bd4 {[%clk 0:01:59]} 19... Ra6
{[%clk 0:00:44]} 20. Nxc8 {[%clk 0:01:48.5]} 20... Rxc8 {[%clk 0:00:38.9]} 21.
Bxa6 {[%clk 0:01:48.7]} 21... Ng4 {[%clk 0:00:35.3]} 22. f4 {[%clk 0:01:32.8]}
22... bxa6 {[%clk 0:00:24.4]} 23. Bxg7+ {[%clk 0:01:26.1]} 23... Kxg7 {[%clk
0:00:24.3]} 24. Qd4+ {[%clk 0:01:24.5]} 24... Kh6 {[%clk 0:00:20.6]} 25. h3
{[%clk 0:01:15.6]} 25... Nf6 {[%clk 0:00:20.1]} 26. Rf2 {[%clk 0:00:35.3]} 26...
Qc3 {[%clk 0:00:19.6]} 27. Rd1 {[%clk 0:00:34.2]} 27... a3 {[%clk 0:00:12.6]}
28. d6 {[%clk 0:00:32.2]} 28... exd6 {[%clk 0:00:10.2]} 29. Qxc3 {[%clk
0:00:30.1]} 29... Rxc3 {[%clk 0:00:10.1]} 30. Rxd6 {[%clk 0:00:31]} 30... Nh5
{[%clk 0:00:07]} 31. g4 {[%clk 0:00:26.9]} 31... Ng3 {[%clk 0:00:04.9]} 32. g5+
{[%clk 0:00:27.2]} 32... Kh5 {[%clk 0:00:04.5]} 33. Rd7 {[%clk 0:00:27.7]} 33...
Kh4 {[%clk 0:00:03.3]} 34. Rxh7+ {[%clk 0:00:27.7]} 34... Nh5 {[%clk 0:00:04]}
35. Re2 {[%clk 0:00:22.4]} 35... Kxh3 {[%clk 0:00:03.4]} 36. Rxh5+ {[%clk
0:00:17.5]} 36... gxh5 {[%clk 0:00:03.5]} 37. g6 {[%clk 0:00:18.4]} 37... Rc6
{[%clk 0:00:03.6]} 38. Rg2 {[%clk 0:00:17.6]} 38... Rc8 {[%clk 0:00:02.8]} 39.
g7 {[%clk 0:00:18.1]} 39... Rg8 {[%clk 0:00:02.7]} 40. Rg5 {[%clk 0:00:18.6]}
40... h4 {[%clk 0:00:02.7]} 41. c4 {[%clk 0:00:17.1]} 41... Rxg7 {[%clk
0:00:03.1]} 42. Rxg7 {[%clk 0:00:16.7]} 1-0

[Event "Late-Titled-Tuesday-Blitz-October-17-2023"]
[Site "Chess.com"]
[Date "2023.10.17"]
[Round "3"]
[White "imdvb6307"]
[Black "Hasangatin_Ramil"]
[Result "0-1"]
[WhiteElo "2500"]
[BlackElo "2713"]
[TimeControl "180+1"]
[EndTime "14:28:34 PDT"]
[Termination "Hasangatin_Ramil won on time"]

1. d4 {[%clk 0:03:00.9]} 1... d6 {[%clk 0:02:59.4]} 2. Nf3 {[%clk 0:02:54.5]}
2... Bg4 {[%clk 0:02:58.4]} 3. e4 {[%clk 0:02:51.4]} 3... Nf6 {[%clk 0:02:57.8]}
4. Bd3 {[%clk 0:02:48.7]} 4... e6 {[%clk 0:02:57.1]} 5. Nbd2 {[%clk 0:02:45.8]}
5... Be7 {[%clk 0:02:56.7]} 6. h3 {[%clk 0:02:45.4]} 6... Bh5 {[%clk 0:02:56.5]}
7. O-O {[%clk 0:02:44.9]} 7... d5 {[%clk 0:02:55.6]} 8. c3 {[%clk 0:02:34.1]}
8... dxe4 {[%clk 0:02:51.8]} 9. Nxe4 {[%clk 0:02:33.2]} 9... Nbd7 {[%clk
0:02:51.4]} 10. Bf4 {[%clk 0:02:22.9]} 10... Nxe4 {[%clk 0:02:50.3]} 11. Bxe4
{[%clk 0:02:21.9]} 11... c6 {[%clk 0:02:50.9]} 12. Qb3 {[%clk 0:01:52.1]} 12...
Qb6 {[%clk 0:02:49.2]} 13. Ne5 {[%clk 0:01:42.7]} 13... Nxe5 {[%clk 0:02:46.3]}
14. Bxe5 {[%clk 0:01:41.4]} 14... O-O {[%clk 0:02:45.8]} 15. Qxb6 {[%clk
0:01:30.5]} 15... axb6 {[%clk 0:02:45.2]} 16. a4 {[%clk 0:01:30.9]} 16... Rac8
{[%clk 0:02:41.7]} 17. f4 {[%clk 0:01:26.6]} 17... Bg6 {[%clk 0:02:36.4]} 18. f5
{[%clk 0:01:25]} 18... exf5 {[%clk 0:02:35.2]} 19. Bxf5 {[%clk 0:01:24.8]} 19...
Bxf5 {[%clk 0:02:35.4]} 20. Rxf5 {[%clk 0:01:24.6]} 20... f6 {[%clk 0:02:33.5]}
21. Bg3 {[%clk 0:01:22.1]} 21... g6 {[%clk 0:02:33.3]} 22. Rf3 {[%clk
0:01:20.9]} 22... Rfe8 {[%clk 0:02:30.3]} 23. Bh4 {[%clk 0:01:16]} 23... f5
{[%clk 0:02:27.6]} 24. Bg3 {[%clk 0:00:55.1]} 24... Bf6 {[%clk 0:02:27.2]} 25.
Re1 {[%clk 0:00:47.7]} 25... Rxe1+ {[%clk 0:02:22.7]} 26. Bxe1 {[%clk
0:00:47.7]} 26... Ra8 {[%clk 0:02:17.1]} 27. b3 {[%clk 0:00:47]} 27... Re8
{[%clk 0:02:16]} 28. Bd2 {[%clk 0:00:42.1]} 28... Re2 {[%clk 0:02:13.4]} 29. Rf2
{[%clk 0:00:42.1]} 29... Rxf2 {[%clk 0:02:09.8]} 30. Kxf2 {[%clk 0:00:41.8]}
30... Kf7 {[%clk 0:02:09.8]} 31. Bf4 {[%clk 0:00:40.4]} 31... Ke6 {[%clk
0:02:08.8]} 32. Ke3 {[%clk 0:00:36.1]} 32... c5 {[%clk 0:01:49.1]} 33. dxc5
{[%clk 0:00:29.8]} 33... bxc5 {[%clk 0:01:49]} 34. Kd3 {[%clk 0:00:27.5]} 34...
Kd5 {[%clk 0:01:47.6]} 35. Bd2 {[%clk 0:00:18]} 35... Be5 {[%clk 0:01:43.7]} 36.
c4+ {[%clk 0:00:17.9]} 36... Ke6 {[%clk 0:01:35.4]} 37. b4 {[%clk 0:00:17.7]}
37... cxb4 {[%clk 0:01:35]} 38. Bxb4 {[%clk 0:00:17.1]} 38... g5 {[%clk
0:01:33]} 39. Bd2 {[%clk 0:00:16]} 39... Bf6 {[%clk 0:01:29.7]} 40. Be3 {[%clk
0:00:14.4]} 40... h5 {[%clk 0:01:28]} 41. Bb6 {[%clk 0:00:09.9]} 41... g4 {[%clk
0:01:25.3]} 42. hxg4 {[%clk 0:00:09.5]} 42... fxg4 {[%clk 0:01:18.4]} 43. Be3
{[%clk 0:00:07.1]} 43... Kf5 {[%clk 0:01:16.2]} 44. c5 {[%clk 0:00:06.4]} 44...
Bd8 {[%clk 0:01:08.1]} 45. Bd2 {[%clk 0:00:05.7]} 45... h4 {[%clk 0:01:06.5]}
46. a5 {[%clk 0:00:02.8]} 46... h3 {[%clk 0:01:04.5]} 47. gxh3 {[%clk
0:00:02.4]} 47... gxh3 {[%clk 0:01:05.4]} 48. c6 {[%clk 0:00:01.3]} 48... bxc6
{[%clk 0:00:52.7]} 49. a6 {[%clk 0:00:01.6]} 49... Bb6 {[%clk 0:00:52.5]} 50.
Ba5 {[%clk 0:00:01.4]} 50... h2 {[%clk 0:00:50.1]} 0-1